bitfinex-derivatives/quotes_ETHF0:USTF0_20250727
["timestamp","ask_amount","ask_price","bid_price","bid_amount"]
[1753637655000,0.52282,3824.3,3824.1,0.5373]
[1753637655203,1.05073,3824.2,3824.1,1.2241]
[1753637655411,1.76463,3824.2,3824.1,1.2241]
[1753637657117,1.76463,3824.2,3824.1,1.6914]
[1753637657312,0.5279,3824.2,3824.1,1.6914]
[1753637657504,0.52281,3824.3,3824.2,1.6914]
[1753637657816,0.52281,3824.3,3824.2,2.8228]
[1753637658217,4.59899,3824.5,3824.4,1.1314]
[1753637658405,4.59899,3824.5,3824.4,2.8228]
[1753637658916,4.93179,3824.5,3824.4,2.8228]
[1753637659112,1.72399,3824.5,3824.4,2.8228]
[1753637659315,2.92559,3824.5,3824.4,2.8228]
[1753637660008,1.68384,3824.2,3824.1,0.7886]
[1753637660314,1.6889,3824.2,3824.1,2.8228]
[1753637660517,1.39123,3824.2,3824.1,2.8228]
[1753637660824,1.72403,3824.2,3824.1,2.8228]
[1753637661315,2.21173,3824.2,3824.1,2.8228]
[1753637661507,2.21173,3824.2,3823.8,0.19352224]
[1753637661508,3.45993,3824.2,3823.8,0.19352224]
[1753637661708,1.68387,3823.9,3823.8,0.98212224]
[1753637661909,2.92567,3823.9,3823.8,2.20622224]
[1753637662411,3.45997,3823.9,3823.8,2.20622224]
[1753637662711,3.45997,3823.9,3822.8,0.52301]
[1753637662712,2.9371,3823.6,3822.8,0.52301]
[1753637662909,2.2232,3823.3,3823.2,1.9427]
[1753637663108,2.2232,3823.3,3823.2,2.2855]
[1753637663310,1.7355,3823.3,3823.2,2.2855]
[1753637663506,1.72415,3823.3,3823.2,2.2855]
[1753637664114,2.25845,3823.3,3823.2,2.2855]
[1753637664813,3.46005,3823.3,3823.2,2.8228]
[1753637665012,2.74615,3823.3,3823.2,2.8228]
[1753637666012,4.4154,3823.9,3823.8,1.1314]
[1753637666314,1.68392,3823.5,3823.4,2.136]
[1753637666514,1.19622,3823.5,3823.4,2.136]
[1753637666712,1.72412,3823.5,3823.4,2.136]
[1753637666913,1.72412,3823.5,3823.4,2.8228]
[1753637667114,3.46002,3823.5,3823.4,2.3555]
[1753637667421,3.46002,3823.5,3823.4,1.4754]
[1753637667615,1.68396,3823.2,3823.1,2.48]
[1753637667814,3.50846,3823.2,3823.1,2.48]
[1753637668017,0.88173,3822.7,3822.6,2.9992]
[1753637668222,1.81013,3822.7,3822.6,2.9992]
[1753637668520,1.25583,3822.7,3822.6,2.9992]
[1753637669513,3.58003,3822.7,3822.6,2.9992]
[1753637669709,0.52309,3822.3,3822.2,2.14771382]
[1753637669916,3.58009,3822.3,3822.2,2.14771382]
[1753637670412,3.58009,3822.3,3822.2,3.01751382]
[1753637670809,2.86449,3822.3,3822.2,3.01751382]
[1753637671114,3.58009,3822.3,3822.2,0.01831382]
[1753637671811,6.78789,3822.3,3822.2,0.01831382]
[1753637672024,3.58009,3822.3,3822.2,1.59721382]
[1753637672625,2.86449,3822.3,3822.2,3.01751382]
[1753637672920,2.3414,3822.3,3822.2,3.01751382]
[1753637673115,3.2078,3822.7,3822.3,1.7813]
[1753637673311,0.20630443,3823.0,3822.6,2.9992]
[1753637673516,0.20630443,3823.0,3822.9,3.5222]
[1753637674018,0.20630443,3823.0,3822.3,1.30772]
[1753637674019,3.02566,3823.2,3823.1,2.1294]
[1753637674226,3.02566,3823.2,3822.2,0.01831382]
[1753637674227,0.8584,3822.4,3822.2,0.01831382]
[1753637674523,3.58009,3822.3,3822.2,0.01831382]
[1753637676220,3.58009,3822.3,3822.2,0.86331382]
[1753637676423,0.3587,3822.3,3822.2,2.14771382]
[1753637676618,0.52309,3822.3,3822.2,0.86331382]
[1753637676817,1.43609,3822.3,3822.2,0.86331382]
[1753637677017,1.81019,3822.3,3822.2,0.86331382]
[1753637677322,1.81019,3822.3,3822.2,2.14771382]
[1753637677520,3.58009,3822.3,3822.2,1.59721382]
[1753637677729,5.03692875,3822.3,3822.2,0.01831382]
[1753637680421,5.03692875,3822.3,3822.2,0.86331382]
[1753637680618,3.2078,3822.4,3822.2,2.14771382]
[1753637680835,3.73087,3822.4,3822.3,0.7339]
[1753637681016,6.78787,3822.4,3822.3,0.7339]
[1753637681216,1.38149,3822.3,3822.2,0.01831382]
[1753637681419,3.58009,3822.3,3822.2,1.59721382]
[1753637681625,5.03692875,3822.3,3822.2,0.01831382]
[1753637683434,3.58014,3821.9,3821.8,0.92752351]
[1753637684023,3.58014,3821.9,3821.8,1.77252351]
[1753637684219,3.58014,3821.9,3821.8,2.32302351]
[1753637684623,0.52309,3822.3,3821.9,1.3955]
[1753637684932,3.73087,3822.4,3822.3,2.1294]
[1753637685325,6.78787,3822.4,3822.3,0.7339]
[1753637685726,3.58013,3822.0,3821.9,1.5789]
[1753637685926,3.58014,3821.9,3821.8,0.19362351]
[1753637686427,4.29704718,3821.9,3821.8,0.19362351]
[1753637686831,0.88195,3821.1,3821.0,1.3955]
[1753637687333,0.88195,3821.1,3821.0,2.1294]
[1753637688734,0.3587,3821.1,3821.0,2.1294]
[1753637689229,0.7156,3821.5,3820.9,3.73107]
[1753637689230,2.4168,3821.8,3821.3,0.845]
[1753637689532,0.52317,3821.7,3821.6,2.1294]
[1753637689730,4.1208,3822.0,3821.9,0.845]
[1753637689935,5.36092772,3822.0,3821.9,2.1294]
[1753637690122,4.64393,3822.0,3821.9,2.1294]
[1753637690328,5.36092329,3822.0,3821.9,2.1294]
[1753637690735,2.15312329,3822.0,3821.9,2.1294]
[1753637691036,2.36483,3822.0,3821.9,2.1294]
[1753637691333,3.0821722,3822.0,3821.9,2.1294]
[1753637693633,3.5818722,3822.0,3821.9,2.1294]
[1753637693828,3.57633843,3822.0,3821.9,2.135]
[1753637694634,3.08046,3821.8,3821.7,0.3678]
[1753637694932,3.58016,3821.8,3821.7,2.1294]
[1753637695132,4.298031,3821.8,3821.7,0.845]
[1753637695333,1.7557,3821.5,3821.4,1.5845]
[1753637695628,3.057,3821.5,3821.4,2.135]
[1753637695826,1.2871,3821.5,3821.4,2.66711]
[1753637696028,0.3587,3821.5,3821.4,2.66711]
[1753637696229,1.1089,3821.8,3821.5,0.52319]
[1753637696424,5.01803,3822.0,3821.9,2.1439]
[1753637696629,5.73619141,3822.0,3821.9,2.1439]
[1753637696831,6.29079141,3822.0,3821.9,2.1439]
[1753637697136,6.79049141,3822.0,3821.9,2.1439]
[1753637697435,7.50609141,3822.0,3821.9,2.1439]
[1753637699337,7.50609141,3822.0,3821.9,2.135]
[1753637699533,7.50609141,3822.0,3821.9,2.1294]
[1753637699732,7.50609141,3822.0,3821.9,0.4772]
[1753637700438,7.50609141,3822.0,3821.9,1.5601]
[1753637701134,7.50609141,3822.0,3821.9,2.0933]
[1753637701330,4.44909141,3822.0,3821.9,2.0933]
[1753637702333,3.92596141,3822.0,3821.9,2.61644]
[1753637702834,0.52303,3822.7,3822.6,2.0729]
[1753637703237,0.88213,3822.7,3822.6,2.0729]
[1753637703942,0.52299,3823.0,3822.9,2.0729]
[1753637704141,1.9045,3823.3,3823.2,0.8066]
[1753637704333,2.90655,3823.3,3823.2,2.0729]
[1753637704538,3.41215,3823.3,3823.2,2.0729]
[1753637705436,2.90655,3823.3,3823.2,2.0729]
[1753637705636,3.2078,3823.4,3823.2,2.0729]
[1753637705839,1.02928,3823.8,3823.7,0.8066]
[1753637706030,1.02928,3823.8,3823.7,2.0729]
[1753637706234,1.38838,3823.8,3823.7,2.0729]
[1753637706435,2.07108,3823.8,3823.7,2.0729]
[1753637706639,2.90648,3823.8,3823.7,2.0729]
[1753637706943,3.41208,3823.8,3823.7,2.0729]
[1753637707142,1.9045,3823.6,3823.5,0.3429]
[1753637707332,1.1945,3823.2,3822.8,0.7331]
[1753637707636,0.6827,3823.6,3823.2,0.7331]
[1753637707833,0.52288,3823.8,3823.6,2.0729]
[1753637708034,1.68468,3823.8,3823.7,2.0729]
[1753637708241,3.41208,3823.8,3823.7,1.3398]
[1753637708447,1.1945,3823.4,3823.3,2.0729]
[1753637708645,2.3836,3823.4,3823.3,2.0729]
[1753637708944,2.90654,3823.4,3823.3,2.0729]
[1753637709337,3.41214,3823.4,3823.3,0.8761]
[1753637709640,0.4791,3823.1,3823.0,2.0729]
[1753637709941,0.52297,3823.2,3823.1,2.0729]
[1753637710141,2.40017,3823.2,3823.1,2.0729]
[1753637710444,3.41217,3823.2,3823.1,2.0729]
[1753637710644,3.41217,3823.2,3823.1,1.3398]
[1753637711133,1.71751,3822.9,3822.8,0.3429]
[1753637711338,3.41221,3822.9,3822.8,0.3429]
[1753637711735,3.41221,3822.9,3822.8,2.0729]
[1753637711940,2.40021,3822.9,3822.8,2.0729]
[1753637712537,3.2078,3823.2,3823.1,0.8066]
[1753637712743,1.1891,3823.7,3823.2,1.3398]
[1753637712939,0.5064,3823.7,3823.6,0.8066]
[1753637713143,0.5229,3823.7,3823.6,2.0729]
[1753637715244,3.4121,3823.7,3823.6,2.0729]
[1753637715442,3.4121,3823.7,3823.6,1.3398]
[1753637716037,3.4121,3823.7,3823.6,2.0785]
[1753637717044,3.4121,3823.7,3823.6,1.3398]
[1753637717445,0.3591,3823.7,3823.6,2.60141]
[1753637717639,4.28978,3823.9,3823.8,0.8066]
[1753637717841,6.81988,3823.9,3823.8,0.8066]
[1753637718045,3.41211,3823.6,3823.5,2.0785]
[1753637718741,3.41216,3823.2,3823.1,0.8761]
[1753637719057,1.00211,3822.9,3822.8,1.0816]
[1753637719347,1.00211,3822.9,3822.7,3.2078]
[1753637719348,1.71752,3822.8,3822.7,3.2078]
[1753637719646,3.41222,3822.8,3822.7,3.2078]
[1753637719848,0.52297,3823.2,3822.7,4.0144]
[1753637720146,0.52295,3823.3,3823.2,0.8066]
[1753637720346,0.52294,3823.4,3823.2,2.0785]
[1753637720547,0.52294,3823.4,3823.3,0.8066]
[1753637720755,2.90654,3823.4,3823.3,0.8066]
[1753637720952,2.90654,3823.4,3823.3,0.3429]
[1753637720953,3.41214,3823.4,3823.3,0.3429]
[1753637721549,1.36116,3823.2,3823.1,0.8761]
[1753637721750,3.41216,3823.2,3823.1,0.8761]
[1753637721952,3.41216,3823.2,3823.1,0.3429]
[1753637722148,3.41221,3822.9,3822.8,0.3429]
[1753637722454,3.41221,3822.9,3822.8,2.0785]
[1753637722654,1.71211,3822.9,3822.8,2.0785]
[1753637722852,2.90661,3822.9,3822.8,2.0785]
[1753637723449,3.41221,3822.9,3822.8,2.0785]
[1753637723947,0.52302,3822.8,3822.7,3.2078]
[1753637724150,2.04116,3822.5,3822.4,0.8761]
[1753637724355,3.41226,3822.5,3822.4,0.8761]
[1753637724956,3.41226,3822.5,3822.4,0.3429]
[1753637725358,3.41227,3822.4,3822.3,31.403]
[1753637725558,2.90667,3822.4,3822.3,32.6749]
[1753637726362,2.22313,3822.7,3822.6,2.0785]
[1753637726657,1.71757,3822.4,3822.3,31.9362]
[1753637726860,3.41227,3822.4,3822.3,31.9362]
[1753637727058,6.62007,3822.4,3822.3,31.403]
[1753637727357,3.41233,3822.0,3821.9,0.3429]
[1753637727862,1.67227,3821.7,3821.6,5.2343]
[1753637728152,1.67227,3821.7,3821.6,2.0265]
[1753637728463,2.86797,3821.7,3821.6,2.0265]
[1753637728647,3.42167,3821.7,3821.6,2.0265]
[1753637729053,3.42171,3821.4,3821.3,2.0265]
[1753637729255,3.42172,3821.3,3821.2,31.9153]
[1753637729462,2.36742,3821.3,3821.2,32.593]
[1753637729757,0.88622,3821.3,3821.2,32.593]
[1753637731954,0.52321,3821.4,3821.3,1.549]
[1753637732156,0.5232,3821.5,3821.4,1.195]
[1753637732461,0.5232,3821.5,3821.4,2.0265]
[1753637732656,3.4217,3821.5,3821.4,1.549]
[1753637732857,3.4217,3821.5,3821.4,0.8713]
[1753637733355,3.4217,3821.5,3821.4,1.3488]
[1753637734362,3.4217,3821.5,3821.4,0.354]
[1753637735558,0.52322,3821.4,3821.2,31.398]
[1753637735762,1.1491,3821.4,3821.3,1.3488]
[1753637735960,1.67231,3821.4,3821.3,2.0265]
[1753637736356,3.42171,3821.4,3821.3,1.3488]
[1753637736552,3.42171,3821.4,3821.3,0.8315]
[1753637737465,3.42171,3821.4,3821.3,1.3488]
[1753637737762,3.42172,3821.3,3821.2,31.398]
[1753637738453,3.42172,3821.3,3821.2,31.9153]
[1753637739364,3.42172,3821.3,3821.2,32.593]
[1753637739761,3.42172,3821.3,3821.2,0.8713]
[1753637740163,1.33487,3821.0,3820.9,0.354]
[1753637740363,3.42177,3821.0,3820.9,0.354]
[1753637740559,2.55825,3820.4,3820.3,1.3488]
[1753637740764,0.52338,3820.2,3820.1,29.1383]
[1753637740962,3.42188,3820.2,3820.1,0.8713]
[1753637741269,3.42188,3820.2,3820.1,0.354]
[1753637741457,2.86822,3819.9,3819.8,1.06502488]
[1753637741662,3.42192,3819.9,3819.8,0.54772488]
[1753637741866,1.1491,3819.5,3819.2,0.01832821]
[1753637742063,4.87883875,3819.3,3819.2,0.37232821]
[1753637742261,4.87883875,3819.3,3819.2,8.21e-06]
[1753637742761,4.87883875,3819.3,3818.4,0.8713]
[1753637742762,3.42211,3818.5,3818.4,0.8713]
[1753637742957,3.42211,3818.5,3818.4,0.354]
[1753637743466,2.3448,3818.5,3818.4,2.55012]
[1753637743661,3.2078,3819.0,3818.9,0.8315]
[1753637743859,0.6951,3819.2,3819.1,0.4775]
[1753637744056,0.6951,3819.2,3817.9,1.30921]
[1753637744057,1.1957,3819.4,3819.3,1.195]
[1753637744263,1.2488,3819.7,3819.0,3.2078]
[1753637744465,3.2078,3820.0,3819.5,0.5173]
[1753637744665,1.71914,3819.8,3819.5,0.5173]
[1753637744871,1.7494,3819.6,3819.5,0.5173]
[1753637745172,1.7494,3819.5,3818.8,1.195]
[1753637745369,3.2078,3819.2,3818.8,0.5173]
[1753637745569,2.27296,3818.9,3818.5,0.5173]
[1753637745767,2.27296,3818.9,3818.4,1.20132]
[1753637745768,0.52356,3818.9,3818.4,0.52362]
[1753637745968,1.7494,3818.6,3818.5,0.5173]
[1753637746367,1.7494,3818.6,3818.5,1.04091]
[1753637746575,1.7494,3818.6,3818.5,1.71861]
[1753637746970,1.7494,3818.6,3818.5,1.195]
[1753637747473,2.273,3818.6,3818.5,0.5173]
[1753637748076,3.42211,3818.5,3818.4,0.354]
[1753637748261,1.33524,3818.3,3818.2,0.0798]
[1753637748468,3.42214,3818.3,3818.2,0.4177]
[1753637748971,3.42214,3818.3,3818.2,0.3379]
[1753637749977,3.42214,3818.3,3817.9,0.52369]
[1753637749978,1.30914,3818.2,3817.4,3.6255]
[1753637750272,2.8985,3817.5,3817.4,3.6255]
[1753637750467,2.8985,3817.5,3817.4,3.6754]
[1753637750668,2.13548,3818.0,3817.9,0.4177]
[1753637750869,0.5537,3818.0,3817.9,1.20249]
[1753637751067,3.2078,3818.4,3818.3,0.78474]
[1753637751267,3.73142,3818.4,3818.3,0.2611]
[1753637751462,4.92712,3818.4,3818.3,0.0499]
[1753637751676,5.48082,3818.4,3818.2,0.52364]
[1753637751869,1.7494,3818.2,3818.1,0.52366]
[1753637752068,0.5537,3818.6,3818.3,0.2611]
[1753637752367,3.73138,3818.8,3818.7,0.52358]
[1753637752368,0.5537,3818.8,3818.7,0.52358]
[1753637752567,0.5537,3818.8,3818.7,0.57348]
[1753637753370,1.07727,3818.8,3818.7,0.57348]
[1753637753573,2.27297,3818.8,3818.7,0.0499]
[1753637753869,2.273,3818.7,3818.6,0.5236]
[1753637754172,0.5236,3818.6,3818.5,0.5236]
[1753637754374,0.5006,3818.7,3818.6,0.5236]
[1753637755064,0.52359,3818.7,3818.5,0.52361]
[1753637755766,0.52359,3818.7,3818.5,0.5236]
[1753637755967,1.7494,3818.6,3818.5,0.5236]
[1753637756167,1.7494,3818.6,3818.2,0.0499]
[1753637756368,0.6951,3818.4,3818.2,0.0499]
[1753637756574,0.6951,3818.4,3818.1,1.30914]
[1753637756575,1.2488,3818.4,3818.3,3.78134]
[1753637756769,1.2488,3818.4,3818.3,3.73144]
[1753637756970,1.2488,3818.4,3818.3,3.78134]
[1753637757265,3.20623875,3818.4,3817.8,3.2078]
[1753637757466,0.52368,3818.1,3818.0,0.52367]
[1753637757665,0.52369,3818.0,3817.9,0.52368]
[1753637757866,1.04075,3817.6,3817.5,0.54794]
[1753637758173,0.52375,3817.6,3817.5,0.54794]
[1753637758473,2.30595,3817.6,3817.5,0.54794]
[1753637758771,1.7822,3817.6,3817.5,0.54794]
[1753637759075,1.2652,3818.0,3817.9,0.52369]
[1753637759268,0.5367,3818.0,3817.9,0.64419]
[1753637759966,1.78888,3818.0,3817.9,0.64419]
[1753637760268,1.78888,3818.0,3817.5,1.55537]
[1753637760269,0.5367,3818.3,3818.1,0.1205]
[1753637760474,1.78878,3818.8,3818.7,0.64408]
[1753637760667,1.97361666,3818.8,3818.7,0.64408]
[1753637760865,1.24511666,3818.8,3818.7,0.64408]
[1753637761064,1.76868666,3818.8,3818.7,0.1205]
[1753637761275,1.2455,3818.4,3818.3,0.54783]
[1753637761568,1.7822,3818.4,3818.3,0.52363]
[1753637761763,1.7822,3818.4,3818.3,0.64413]
[1753637761963,4.66463875,3818.9,3818.2,3.2078]
[1753637761964,4.4533,3818.9,3818.8,0.54777]
[1753637762270,5.16212422,3818.9,3818.8,0.64407]
[1753637762471,2.49102422,3818.9,3818.8,0.64407]
[1753637762977,1.7822,3818.8,3818.4,0.0242]
[1753637763178,1.7822,3818.8,3818.2,4.51691]
[1753637763179,1.7822,3818.6,3818.5,0.52361]
[1753637764066,1.7822,3818.6,3818.5,0.54781]
[1753637764778,2.3058,3818.6,3818.5,0.54781]
[1753637764971,1.7822,3818.6,3818.5,0.54781]
[1753637765367,3.4887,3818.6,3818.5,1.05551]
[1753637765776,3.4887,3818.6,3818.5,0.90141]
[1753637765973,3.4887,3818.6,3818.5,0.52361]
[1753637766277,3.4887,3818.6,3818.5,0.90141]
[1753637767577,0.8862,3818.6,3818.5,1.19061]
[1753637767779,0.5367,3818.6,3818.5,1.43661]
[1753637767974,0.5367,3819.0,3818.9,1.19056]
[1753637768279,0.5367,3819.0,3818.9,1.43656]
[1753637768582,1.24885962,3819.0,3818.9,1.43656]
[1753637769080,1.59835962,3819.0,3818.9,1.19056]
[1753637769281,3.67725962,3819.0,3818.9,1.19056]
[1753637770083,4.20079962,3819.0,3818.9,0.52356]
[1753637770277,3.67725962,3819.0,3818.9,0.52356]
[1753637770484,3.67725962,3819.0,3818.9,1.19056]
[1753637772076,0.71215962,3819.0,3818.9,1.43656]
[1753637772271,2.9716,3819.3,3819.2,0.667]
[1753637772481,4.20314366,3819.3,3819.2,0.3536]
[1753637772682,1.97974366,3819.3,3819.2,1.19051]
[1753637772872,1.25124366,3819.3,3819.2,1.19051]
[1753637773081,1.25124366,3819.3,3819.2,1.43651]
[1753637773982,0.71454366,3819.3,3819.2,6.43651]
[1753637774183,0.9285,3819.9,3819.8,0.77383]
[1753637774184,2.11906112,3819.9,3819.8,0.77383]
[1753637774486,4.54746112,3819.9,3819.6,3.2078]
[1753637774682,3.48855,3819.7,3819.6,0.52345]
[1753637775086,2.9651,3819.7,3819.6,0.52345]
[1753637775281,2.9651,3819.7,3819.6,0.77385]
[1753637775585,3.48855,3819.7,3819.6,0.77385]
[1753637776284,2.9651,3819.7,3819.6,0.77385]
[1753637776586,3.48855,3819.7,3819.6,0.77385]
[1753637777288,0.5367,3819.7,3819.6,0.77385]
[1753637777881,2.4481,3819.7,3819.6,0.77385]
[1753637778087,3.48855,3819.7,3819.6,0.77385]
[1753637778286,2.9651,3819.7,3819.6,0.77385]
[1753637778687,2.4481,3819.7,3819.6,0.77385]
[1753637778885,3.48855,3819.7,3819.6,0.77385]
[1753637779586,3.48855,3819.7,3819.6,0.2504]
[1753637780585,2.9651,3819.2,3819.1,3.3041]
[1753637780889,2.1032,3819.2,3819.1,3.98173]
[1753637781189,0.5367,3819.2,3819.1,3.98173]
[1753637781488,3.48861,3819.2,3819.1,3.73133]
[1753637781684,2.9651,3819.2,3819.1,3.88543]
[1753637781892,0.5367,3819.2,3819.1,3.97053]
[1753637782589,1.6147,3819.2,3819.1,3.97053]
[1753637782789,2.4481,3819.2,3819.1,3.97053]
[1753637783188,2.9651,3819.2,3819.1,3.97053]
[1753637784194,3.48861,3819.2,3819.1,3.2078]
[1753637784691,3.48867,3818.8,3818.7,0.52358]
[1753637784887,3.48871,3818.7,3818.6,0.52358]
[1753637785387,0.52362,3818.6,3818.5,0.5236]
[1753637785693,3.48872,3818.5,3818.4,0.52361]
[1753637786394,2.9651,3818.5,3818.4,0.52361]
[1753637786892,2.9651,3818.5,3818.4,3.73141]
[1753637787192,2.9651,3818.5,3818.4,0.52361]
[1753637787491,2.9651,3818.5,3818.4,3.73141]
[1753637787689,2.9651,3818.5,3818.4,0.52361]
[1753637787890,2.9651,3818.5,3818.4,3.73141]
[1753637788193,2.9651,3818.5,3818.4,0.52361]
[1753637788194,3.48871,3818.5,3818.4,0.52361]
[1753637788493,3.48871,3818.5,3818.4,3.73141]
[1753637789090,1.30892,3818.9,3818.2,28.284]
[1753637789091,1.67934,3818.4,3818.3,0.52362]
[1753637789290,3.48344,3818.4,3818.3,0.52362]
[1753637791296,2.9598,3818.4,3818.3,0.52362]
[1753637791795,3.48342,3818.4,3818.3,0.52362]
[1753637792886,3.48342,3818.4,3818.3,0.73132]
[1753637793486,0.908,3818.4,3818.3,0.73132]
[1753637793687,1.4116,3819.0,3818.9,0.52356]
[1753637793899,2.9598,3819.0,3818.9,0.52356]
[1753637794299,2.9598,3819.0,3818.9,0.73126]
[1753637795190,2.9598,3819.0,3818.9,0.65136]
[1753637795997,2.4475,3819.0,3818.9,0.73126]
[1753637796193,0.5641,3819.0,3818.9,0.73126]
[1753637796395,0.5641,3819.4,3819.3,0.1278]
[1753637796587,0.5641,3819.4,3819.3,3.939]
[1753637797391,0.7277,3819.7,3819.6,1.09096]
[1753637797593,0.9277,3819.9,3819.8,1.09093]
[1753637797797,0.9277,3819.9,3819.8,4.82013]
[1753637797998,2.0834,3819.9,3819.8,4.82013]
[1753637798397,2.5957,3819.9,3819.8,4.29873]
[1753637799398,3.1598,3819.9,3819.8,1.09093]
[1753637799799,3.1598,3819.9,3819.8,4.29873]
[1753637804197,3.1598,3819.9,3819.8,4.82013]
[1753637804400,2.6475,3819.9,3819.8,4.82013]
[1753637804997,3.1598,3819.9,3819.8,4.82013]
[1753637805501,3.1598,3819.9,3819.8,4.29873]
[1753637806303,3.1598,3819.9,3819.8,4.21883]
[1753637806502,3.68322,3819.9,3819.8,3.73123]
[1753637806696,1.1557,3819.5,3819.4,28.282]
[1753637806893,3.48327,3819.5,3819.4,28.282]
[1753637807094,2.9598,3819.5,3819.4,28.80549]
[1753637807291,2.9598,3819.5,3819.4,29.29309]
[1753637807496,1.868,3819.9,3819.8,1.09093]
[1753637807699,1.3557,3819.9,3819.8,1.61233]
[1753637807997,3.1598,3819.9,3819.8,1.61233]
[1753637808599,0.2,3819.9,3819.8,1.61233]
[1753637810701,3.1598,3819.9,3819.8,1.61233]
[1753637810907,3.1598,3819.9,3819.8,1.09093]
[1753637811299,2.6198,3820.3,3820.2,1.77188]
[1753637811598,2.9598,3820.3,3820.2,5.50108]
[1753637812005,0.52328,3821.0,3820.2,5.50108]
[1753637812006,2.3957,3820.6,3820.5,1.36424]
[1753637812202,2.9598,3820.6,3820.5,1.77184]
[1753637812505,1.2918,3820.6,3820.5,2.29324]
[1753637812906,2.9598,3820.9,3820.8,1.7718]
[1753637813101,1.668,3821.3,3821.2,0.52324]
[1753637813301,2.1036,3821.3,3821.2,5.50094]
[1753637813507,0.5641,3821.6,3821.5,2.2931]
[1753637814008,3.1598,3821.9,3821.8,1.77166]
[1753637815110,2.2321,3822.2,3822.1,1.36402]
[1753637815297,2.9598,3822.2,3822.1,4.97942]
[1753637816104,2.9598,3822.2,3822.1,4.89952]
[1753637816410,1.3098,3822.3,3822.2,1.9332]
[1753637816605,1.3098,3822.3,3822.2,2.293]
[1753637817504,1e-05,3822.3,3822.2,2.293]
[1753637817701,1e-05,3822.3,3822.2,7.293]
[1753637818009,2.996,3823.3,3823.2,1.64377]
[1753637820403,2.996,3823.7,3823.6,1.19071]
[1753637820800,2.996,3823.7,3823.6,1.52871]
[1753637821109,2.996,3823.7,3823.6,1.71561]
[1753637821514,2.996,3823.7,3823.6,1.64371]
[1753637822509,2.996,3823.7,3823.6,1.71561]
[1753637822904,3.5189,3823.7,3823.6,0.52291]
[1753637823110,2.996,3822.8,3822.7,0.86913]
[1753637823305,2.996,3822.8,3822.7,2.01713]
[1753637823504,2.4684,3823.2,3823.1,3.12888]
[1753637823715,1.7203,3823.5,3823.4,1.69534]
[1753637823920,2.4684,3823.5,3823.4,2.53404]
[1753637824414,1.9531,3823.5,3823.4,3.12884]
[1753637824614,1.205,3823.5,3823.4,3.12884]
[1753637825110,2.4684,3823.8,3823.7,3.1288]
[1753637825314,2.4684,3823.8,3823.7,6.3366]
[1753637825614,2.4684,3823.8,3823.7,5.7418]
[1753637825817,2.4684,3823.8,3823.7,5.4201]
[1753637826618,2.4684,3823.8,3823.7,4.5651]
[1753637827010,2.4684,3823.8,3823.7,4.0768]
[1753637827911,1.2634,3823.8,3823.7,6.3366]
[1753637828211,1.72774,3824.9,3824.8,0.52275]
[1753637828517,1.205,3824.9,3824.8,0.52275]
[1753637829018,1.205,3824.9,3824.8,0.86885]
[1753637829217,1.205,3824.9,3824.8,3.48435]
[1753637829814,1.205,3824.9,3824.8,0.52275]
[1753637830019,2.4684,3824.9,3824.8,0.52275]
[1753637831110,1.9531,3824.9,3824.8,0.52275]
[1753637831317,2.4684,3824.9,3824.8,0.52275]
[1753637831518,2.99115,3824.9,3824.8,0.52275]
[1753637831713,2.4684,3824.9,3824.8,0.52275]
[1753637832316,2.4684,3824.9,3824.8,3.48435]
[1753637833821,2.4684,3824.9,3824.8,0.52275]
[1753637834021,2.99117,3824.7,3824.6,0.52277]
[1753637834317,2.4684,3824.7,3824.1,3.2078]
[1753637834518,1.205,3824.2,3824.1,0.52284]
[1753637835117,2.4684,3824.2,3824.1,0.52284]
[1753637837725,2.4684,3824.2,3824.1,3.48444]
[1753637837922,2.4684,3824.6,3824.5,1.69519]
[1753637838126,2.4684,3824.6,3824.5,0.52279]
[1753637839129,2.4684,3824.1,3824.0,28.78086]
[1753637839420,2.4684,3824.1,3824.0,30.01486]
[1753637839627,2.4684,3824.1,3824.0,31.74246]
[1753637839818,1.9531,3824.1,3824.0,31.74246]
[1753637840023,1.205,3824.1,3824.0,31.74246]
[1753637840626,1.9531,3824.1,3824.0,31.74246]
[1753637841027,1.2634,3825.0,3824.4,1.1724]
[1753637841221,2.4684,3825.0,3824.9,2.96733]
[1753637841422,3.17267701,3825.0,3824.9,0.52273]
[1753637841720,3.70027701,3825.0,3824.9,2.96733]
[1753637842030,3.18497701,3825.0,3824.9,3.48433]
[1753637842223,3.70027701,3825.0,3824.9,3.48433]
[1753637842826,3.70027701,3825.0,3824.9,0.52273]
[1753637844625,4.22299701,3825.0,3824.9,0.52273]
[1753637845626,3.70027701,3825.0,3824.9,0.52273]
[1753637847426,3.70027701,3825.0,3824.9,2.93443]
[1753637847627,3.70027701,3825.0,3824.9,3.48433]
[1753637848022,3.70027701,3825.0,3824.9,1.20683]
[1753637848924,4.22299701,3825.0,3824.9,0.3461]
[1753637849234,3.0148,3824.3,3824.2,0.52283]
[1753637849529,3.71907701,3824.3,3824.2,0.52283]
[1753637849730,3.71907701,3824.3,3824.2,1.68983]
[1753637849930,3.71907701,3824.3,3824.2,3.52253]
[1753637850126,0.70427701,3824.3,3824.2,3.52253]
[1753637850320,1.2466,3824.7,3824.2,3.52253]
[1753637850321,2.4519,3824.7,3824.6,1.68978]
[1753637850521,4.24233617,3824.7,3824.6,0.52278]
[1753637850721,3.71957617,3824.7,3824.6,0.52278]